{"text_format":"1","workbook":"xlsx","n_sheets":3,"sheets":["CCU","Orcamento","BDI"],"not_rendered":{"charts":0,"images":3,"macros":0,"external_links":3,"defined_names":40,"comments":0,"pivot_tables":0},"unopened":[],"bounds":{"document_bytes":16777216,"sheet_cells":100000,"rows_first":2000,"rows_last":500,"rows_between":2000,"halvings":0,"cell_chars":16384,"cell_head_chars":4096},"cells_cut":0,"cells_raw":0,"read":"whole","date_system":"1900"}

{"sheet":"CCU","index":0,"n_rows":84,"n_cols":6,"rows_kept":84,"cut":false,"hidden":false,"merged":[]}
["COMPOSIÇÃO DE CUSTO UNITÁRIOS DE SERVIÇOS DE ENGENHARIA",null,null,null,"FONTE:","SICRO/AGESUL/SINAPI"]
[null,null,null,null,"DATA BASE:","NOVEMBRO./2022"]
[]
["FONTE AGESUL DEIURB","DISCRIMINAÇÃO","UN ","QUANTIDADE","CUSTO UNITÁRIO (R$)","CUSTO (R$)"]
["EG0007","Sondagem à percussão (SPT) com lavagem","m",null,null,{"$f":"TRUNC(SUM(F6:F13),2)","v":168.23}]
["SINAPI 101403","ENGENHEIRO CIVIL SENIOR COM ENCARGOS COMPLEMENTARES","mês ",8.0000000000000007E-5,28594.95,{"$f":"TRUNC(D6*E6,4)","v":2.2875000000000001}]
["SINAPI 100319","ENGENHEIRO CIVIL JUNIOR COM ENCARGOS COMPLEMENTARES","mês ",1.67E-3,18597.310000000001,{"$f":"TRUNC(D7*E7,4)","v":31.057500000000001}]
["SINAPI 101388","AUXILIAR TÉCNICO COM ENCARGOS COMPLEMENTARES","mês",3.3300000000000001E-3,3462.31,11.529400000000001]
["SINAPI 101456","TÉCNICO DE LABORATÓRIO COM ENCARGOS COMPLEMENTARES","mês",3.3300000000000001E-3,5318.22,{"$f":"TRUNC(D9*E9,4)","v":17.709599999999998}]
["SINAPI 101385","AUXILIAR DE LABORATÓRIO COM ENCARGOS COMPLEMENTARES","mês ",3.3300000000000001E-3,4465.13,14.8688]
["SINAPI 101457","TÉCNICO EM SONDAGEM COM ENCARGOS COMPLEMENTARES","mês ",6.6699999999999997E-3,6998.3,46.678600000000003]
["B8957","LABORATÓRIO DE SOLOS","mês",3.3300000000000001E-3,3517.99,11.7149]
["V0003","Van furgão - 93 kW (com motorista) ","mês",4.3299999999999996E-3,7481.19,32.393500000000003]
["ET0002","Levantamento topográfico planialtimétrico","ha ",null,null,{"$f":"TRUNC(SUM(F15:F22),2)","v":6029.44}]
["SINAPI 101403","ENGENHEIRO CIVIL SENIOR COM ENCARGOS COMPLEMENTARES","mês ",4.1700000000000001E-3,28594.95,{"$f":"TRUNC(D15*E15,4)","v":119.2409}]
["SINAPI 100319","ENGENHEIRO CIVIL JUNIOR COM ENCARGOS COMPLEMENTARES","mês ",8.3299999999999999E-2,18597.310000000001,{"$f":"TRUNC(D16*E16,4)","v":1549.1559}]
["SINAPI 94296","TOPOGRAFO COM ENCARGOS COMPLEMENTARES","mês ",0.18329999999999999,4056.63,743.58019999999999]
["SINAPI 101389","AUXILIAR DE TOPÓGRAFO COM ENCARGOS COMPLEMENTARES","mês ",0.36659999999999998,1987.55,728.63580000000002]
["SINAPI 93559","DESENHISTA DETALHISTA COM ENCARGOS COMPLEMENTARES","mês",0.2,3855.16,771.03200000000004]
["SINAPI 101423","MOTORISTA DE VEÍCULO LEVE COM ENCARGOS COMPLEMENTARES","mês",0.18329999999999999,4320.66,{"$f":"TRUNC(D20*E20,4)","v":791.9769}]
["B8958","LABORATÓRIO DE TOPOGRAFIA","mês",0.18329999999999999,2344.21,{"$f":"TRUNC(D21*E21,4)","v":429.6936}]
["V0002","Veículo leve Pick Up 4x4 - 147 kW (sem motorista) ","mês",0.18329999999999999,4888.8900000000003,896.13350000000003]
["ETG0001","Elaboração de estudos topográficos e geotécnicos","km",null,null,{"$f":"SUM(F24:F37)","v":9331.9117000000006}]
["SINAPI 101403","ENGENHEIRO CIVIL SENIOR COM ENCARGOS COMPLEMENTARES","mês ",4.15E-3,28594.95,{"$f":"TRUNC(D24*E24,4)","v":118.669}]
["SINAPI 100319","ENGENHEIRO CIVIL JUNIOR COM ENCARGOS COMPLEMENTARES","mês ",8.3000000000000004E-2,18597.310000000001,1543.5767000000001]
["SINAPI 101456","TÉCNICO DE LABORATÓRIO COM ENCARGOS COMPLEMENTARES","mês ",0.13899999999999998,5318.22,739.23249999999996]
["SINAPI 101385","AUXILIAR DE LABORATÓRIO COM ENCARGOS COMPLEMENTARES","mês ",0.27799999999999997,4465.13,1241.3061]
["SINAPI 94296","TOPOGRAFO COM ENCARGOS COMPLEMENTARES","mês ",0.16600000000000001,4056.63,673.40049999999997]
["SINAPI 101389","AUXILIAR DE TOPÓGRAFO COM ENCARGOS COMPLEMENTARES","mês ",0.33300000000000002,1987.55,661.85410000000002]
["SINAPI 93559","DESENHISTA DETALHISTA COM ENCARGOS COMPLEMENTARES","mês",2.1999999999999999E-2,3855.16,84.813500000000005]
["SINAPI 101390","TÉCNICO DE GEOPROCESSAM. COM ENCARGOS COMPLEMENTARES","mês ",0.16600000000000001,6109.96,1014.2533]
["SINAPI 101423","MOTORISTA DE VEÍCULO LEVE COM ENCARGOS COMPLEMENTARES","mês ",8.3000000000000004E-2,4320.66,358.61470000000003]
["B8958","LABORATÓRIO DE TOPOGRAFIA","mês",0.16600000000000001,2344.21,389.1388]
["B8957","LABORATÓRIO DE SOLOS","mês",0.13899999999999998,3517.99,489.00060000000002]
["V0001","Veículo leve - 53 kW (sem motorista) ","mês",8.3000000000000004E-2,2007.36,166.61080000000001]
["V0002","Veículo leve Pick Up 4x4 - 147 kW (sem motorista) ","mês",0.16600000000000001,4888.8900000000003,811.5557]
["V0003","Van furgão - 93 kW (com motorista) ","mês",0.13899999999999998,7481.19,1039.8853999999999]
["PIU0001","Elaboração de projetos executivos geométrico, terraplenagem, pavimentação, drenagem superficial (guias e sarjetas) sinalização viária e acessibilidade (inclusive planilha orçamentária detalhada, composição de BDI, cronograma físico-financeiro, planilha de composição de custo unitário, memória de cálculo e memorial descritivo)","m²",null,null,{"$f":"TRUNC(SUM(F39:F44),2)","v":2.86}]
["SINAPI 101403","ENGENHEIRO CIVIL SENIOR COM ENCARGOS COMPLEMENTARES","mês ",2.0000000000000002E-5,28594.95,{"$f":"TRUNC(D39*E39,4)","v":0.57179999999999997}]
["SINAPI 100319","ENGENHEIRO CIVIL JUNIOR COM ENCARGOS COMPLEMENTARES","mês ",9.0000000000000006E-5,18597.310000000001,1.6737]
["SINAPI 93559","DESENHISTA DETALHISTA COM ENCARGOS COMPLEMENTARES","mês",6.0000000000000002E-5,3855.16,0.23130000000000001]
["SINAPI 101388","AUXILIAR TÉCNICO COM ENCARGOS COMPLEMENTARES","mês",4.0000000000000003E-5,3462.31,0.1384]
["SINAPI 101423","MOTORISTA DE VEÍCULO LEVE COM ENCARGOS COMPLEMENTARES","mês ",4.0000000000000003E-5,4320.66,0.17280000000000001]
["V0001","Veículo leve - 53 kW (sem motorista) ","mês",4.0000000000000003E-5,2007.36,8.0199999999999994E-2]
["PIU0004","Elaboração de projeto executivo de galerias de drenagem de águas pluviais. Exclusive serviços topográficos e geotécnicos","m",null,null,{"$f":"TRUNC(SUM(F46:F51),2)","v":6.66}]
["SINAPI 101403","ENGENHEIRO CIVIL SENIOR COM ENCARGOS COMPLEMENTARES","mês ",5.0000000000000002E-5,28594.95,{"$f":"TRUNC(D46*E46,4)","v":1.4297}]
["SINAPI 100319","ENGENHEIRO CIVIL JUNIOR COM ENCARGOS COMPLEMENTARES","mês ",2.4000000000000001E-4,18597.310000000001,4.4633000000000003]
["SINAPI 93559","DESENHISTA DETALHISTA COM ENCARGOS COMPLEMENTARES","mês",1.3999999999999999E-4,3855.16,0.53969999999999996]
["SINAPI 101388","AUXILIAR TÉCNICO COM ENCARGOS COMPLEMENTARES","mês",5.0000000000000002E-5,3462.31,0.1731]
["SINAPI 101423","MOTORISTA DE VEÍCULO LEVE COM ENCARGOS COMPLEMENTARES","mês ",1.0000000000000001E-5,4320.66,4.3200000000000002E-2]
["V0001","Veículo leve - 53 kW (sem motorista) ","mês",1.0000000000000001E-5,2007.36,0.02]
["PIU0009","Elaboração de projeto estrutural de estabilização de taludes através de muro de arrimo de peso e/ou gabião. Exclusive serviços topográficos e geotécnicos","m²",null,null,{"$f":"TRUNC(SUM(F53:F57),2)","v":11.14}]
["SINAPI 101403","ENGENHEIRO CIVIL SENIOR COM ENCARGOS COMPLEMENTARES","mês ",2.3000000000000001E-4,28594.95,{"$f":"TRUNC(D53*E53,4)","v":6.5768000000000004}]
["SINAPI 100319","ENGENHEIRO CIVIL JUNIOR COM ENCARGOS COMPLEMENTARES","mês ",1.6000000000000001E-4,18597.310000000001,2.9754999999999998]
["SINAPI 93559","DESENHISTA DETALHISTA COM ENCARGOS COMPLEMENTARES","mês",1.6000000000000001E-4,3855.16,0.61680000000000001]
["SINAPI 101388","AUXILIAR TÉCNICO COM ENCARGOS COMPLEMENTARES","mês",1.6000000000000001E-4,3462.31,0.55389999999999995]
["V0001","Veículo leve - 53 kW (sem motorista) ","mês",2.1000000000000001E-4,2007.36,{"$f":"TRUNC(D57*E57,4)","v":0.42149999999999999}]
["PIU0011","Elaboração de projeto executivo de bacia de amortecimento de drenagem de águas pluviais. Exclusive serviços topográficos e geotécnicos e projeto estrutural de contenção de talude","m³",null,null,{"$f":"TRUNC(SUM(F59:F63),2)","v":1.89}]
["SINAPI 101403","ENGENHEIRO CIVIL SENIOR COM ENCARGOS COMPLEMENTARES","mês ",2.0000000000000002E-5,28594.95,{"$f":"TRUNC(D59*E59,4)","v":0.57179999999999997}]
["SINAPI 100319","ENGENHEIRO CIVIL JUNIOR COM ENCARGOS COMPLEMENTARES","mês ",6.0000000000000002E-5,18597.310000000001,1.1157999999999999]
["SINAPI 93559","DESENHISTA DETALHISTA COM ENCARGOS COMPLEMENTARES","mês",4.0000000000000003E-5,3855.16,0.1542]
["SINAPI 101388","AUXILIAR TÉCNICO COM ENCARGOS COMPLEMENTARES","mês",1.0000000000000001E-5,3462.31,3.4599999999999999E-2]
["V0001","Veículo leve - 53 kW (sem motorista) ","mês",1.0000000000000001E-5,2007.36,0.02]
["V0001","Veículo leve - 53 kW (sem motorista) ","mês",null,null,{"$f":"TRUNC(SUM(F65:F66),2)","v":2007.36}]
["SICRO E8889","Veículo leve - tipo hatch - (sem motorista)","CHP",66,24.29,{"$f":"TRUNC(D65*E65,4)","v":1603.14}]
["SICRO E8889","Veículo leve - tipo hatch - (sem motorista)","CHI",116.49,3.47,{"$f":"TRUNC(D66*E66,4)","v":404.22030000000001}]
["V0002","Veículo leve Pick Up 4x4 - 147 kW (sem motorista) ","mês",null,null,{"$f":"TRUNC(SUM(F68:F69),2)","v":4888.8900000000003}]
["SICRO E8891","Veículo leve - tipo pick up 4 x 4 - (sem motorista)","CHP",66,48.87,{"$f":"TRUNC(D68*E68,4)","v":3225.42}]
["SICRO E8891","Veículo leve - tipo pick up 4 x 4 - (sem motorista)","CHI",116.49,14.28,{"$f":"TRUNC(D69*E69,4)","v":1663.4772}]
["V0003","Van furgão - 93 kW (com motorista) ","mês",null,null,{"$f":"TRUNC(SUM(F71:F72),2)","v":7481.19}]
["SICRO E8887","Veículo van - tipo furgão - (com motorista)","CHP",66,54.93,{"$f":"TRUNC(D71*E71,4)","v":3625.38}]
["SICRO E8887","Veículo van - tipo furgão - (com motorista)","CHI",116.49,33.1,{"$f":"TRUNC(D72*E72,4)","v":3855.819}]
["PRO_ENC","Reprografia e montagem de relatório (texto e desenho)","un ",null,null,{"$f":"TRUNC(SUM(F74:F78),2)","v":559}]
["C0001","Cópia/Impressão escala de cinza A4, papel sufite 75g","un ",100,0.15,{"$f":"TRUNC(D74*E74,4)","v":15}]
["C0002","Cópia/Impressão colorida A4, papel sufite 75g","un ",50,1,{"$f":"TRUNC(D75*E75,4)","v":50}]
["C0003","Plotagem escala de cinza A1, papel sufite 75g","un ",20,5,100]
["C0004","Plotagem colorida A1, papel sufite 75g","un ",30,13,390]
["C0005","Encadernação espiral, capa plásticas transparentes e contracapa preta A4, até 150 folhas ","un ",1,4,4]
["LIC_AMB","Licenciamento Ambiental para projeto de lançamento de drenagem de águas pluviais","un ",null,null,{"$f":"TRUNC(SUM(F80:F84),2)","v":21016.35}]
["SINAPI 101403","ENGENHEIRO AMBIENTAL SENIOR COM ENCARGOS COMPLEMENTARES","mês",0.35,28594.95,{"$f":"TRUNC(D80*E80,4)","v":10008.2325}]
["SINAPI 100319","ENGENHEIRO AGRÔNOMO JUNIOR COM ENCARGOS COMPLEMENTARES","mês",0.35,18597.310000000001,6509.0585000000001]
["SINAPI 93559","DESENHISTA DETALHISTA COM ENCARGOS COMPLEMENTARES","mês",0.2,3855.16,{"$f":"TRUNC(D82*E82,4)","v":771.03200000000004}]
["P8032","Biólogo júnior ","mês",0.21,6112.31,{"$f":"TRUNC(D83*E83,4)","v":1283.5851}]
["V0002","Veículo leve Pick Up 4x4 - 147 kW (sem motorista) ","mês",0.5,4888.8900000000003,2444.4450000000002]

{"sheet":"Orcamento","index":1,"n_rows":17,"n_cols":9,"rows_kept":17,"cut":false,"hidden":false,"merged":[[16,0,16,4],[16,5,16,6]]}
[null,"PREFEITURA MUNICIPAL DE SIDROLÂNDIA - MS",null,null,null,null,"DATA BASE:"]
[null,"SECRETARIA MUNICIPAL DE PLANEJAMENTO E PROJETOS ESTRATÉGICOS",null,null,null,null,{"$f":"+CCU!F2","v":"NOVEMBRO./2022"}]
[null,null,null,null,null,null,"BDI SERVIÇOS:"]
[null,"LOCAL :","BAIRRO ALTO DA FIGUEIRA",null,null,null,{"$f":"BDI!E17","v":0.2223}]
[null,"SERVIÇO:","ELABORAÇÃO DE PROJETOS EXECUTIVO  DE INFRAESTURURA URBANA - PAVIMENTAÇÃO E DRENAGEM DE ÁGUAS PLUVIAIS"]
[]
[null,null,"PLANILHA ORÇAMENTÁRIA"]
[]
["ITEM","CÓDIGO","DISCRIMINAÇÃO","UNID.","QUANT.","PREÇO UNITÁRIO          C/ BDI - (R$)","PREÇO TOTAL                        (R$)","(%)"]
[1,"PRO_ENC",{"$f":"VLOOKUP(B10,CCU!A:F,2,0)","v":"Reprografia e montagem de relatório (texto e desenho)"},{"$f":"VLOOKUP(B10,CCU!A:F,3,0)","v":"un "},5,{"$f":"TRUNC((VLOOKUP(B10,CCU!A:F,6,0))*(1+$G$4),2)","v":683.26},{"$f":"TRUNC(E10*F10,2)","v":3416.3},{"$f":"G10/$F$17","v":2.1859570352553797E-2}]
[2,"ETG0001",{"$f":"VLOOKUP(B11,CCU!A:F,2,0)","v":"Elaboração de estudos topográficos e geotécnicos"},{"$f":"VLOOKUP(B11,CCU!A:F,3,0)","v":"km"},2.5,{"$f":"TRUNC((VLOOKUP(B11,CCU!A:F,6,0))*(1+$G$4),2)","v":11406.39},{"$f":"TRUNC(E11*F11,2)","v":28515.97},0.18246256253441251]
[3,"PIU0001",{"$f":"VLOOKUP(B12,CCU!A:F,2,0)","v":"Elaboração de projetos executivos geométrico, terraplenagem, pavimentação, drenagem superficial (guias e sarjetas) sinalização viária e acessibilidade (inclusive planilha orçamentária detalhada, composição de BDI, cronograma físico-financeiro, planilha de composição de custo unitário, memória de cálculo e memorial descritivo)"},{"$f":"VLOOKUP(B12,CCU!A:F,3,0)","v":"m²"},17615.080000000002,{"$f":"TRUNC((VLOOKUP(B12,CCU!A:F,6,0))*(1+$G$4),2)","v":3.49},61476.62,0.39336489767503313,{"$f":"F17/E12","v":8.8721680514649943}]
[4,"PIU0004",{"$f":"VLOOKUP(B13,CCU!A:F,2,0)","v":"Elaboração de projeto executivo de galerias de drenagem de águas pluviais. Exclusive serviços topográficos e geotécnicos"},{"$f":"VLOOKUP(B13,CCU!A:F,3,0)","v":"m"},2400,{"$f":"TRUNC((VLOOKUP(B13,CCU!A:F,6,0))*(1+$G$4),2)","v":8.14},19536,0.12500323929616572]
[5,"ET0002",{"$f":"VLOOKUP(B14,CCU!A:F,2,0)","v":"Levantamento topográfico planialtimétrico"},{"$f":"VLOOKUP(B14,CCU!A:F,3,0)","v":"ha "},1,{"$f":"TRUNC((VLOOKUP(B14,CCU!A:F,6,0))*(1+$G$4),2)","v":7369.78},7369.78,4.7156345869169544E-2]
[6,"EG0007",{"$f":"VLOOKUP(B15,CCU!A:F,2,0)","v":"Sondagem à percussão (SPT) com lavagem"},{"$f":"VLOOKUP(B15,CCU!A:F,3,0)","v":"m"},50,{"$f":"TRUNC((VLOOKUP(B15,CCU!A:F,6,0))*(1+$G$4),2)","v":205.62},10281,6.5784106429355019E-2]
[7,"LIC_AMB",{"$f":"VLOOKUP(B16,CCU!A:F,2,0)","v":"Licenciamento Ambiental para projeto de lançamento de drenagem de águas pluviais"},{"$f":"VLOOKUP(B16,CCU!A:F,3,0)","v":"un "},1,{"$f":"TRUNC((VLOOKUP(B16,CCU!A:F,6,0))*(1+$G$4),2)","v":25688.28},25688.28,0.16436927784331018]
["TOTAL GERAL",null,null,null,null,{"$f":"SUM(G10:G16)","v":156283.95000000001},null,{"$f":"F17/$F$17","v":1}]

{"sheet":"BDI","index":2,"n_rows":29,"n_cols":5,"rows_kept":29,"cut":false,"hidden":false,"merged":[[34,0,34,4],[35,0,35,4],[36,0,36,4],[3,0,3,4],[4,0,4,1],[4,3,4,4],[16,0,16,3],[28,0,28,4]]}
[{"$f":"Orcamento!B1","v":"PREFEITURA MUNICIPAL DE SIDROLÂNDIA - MS"}]
[{"$f":"Orcamento!B2","v":"SECRETARIA MUNICIPAL DE PLANEJAMENTO E PROJETOS ESTRATÉGICOS"}]
[]
["COMPOSIÇÃO DE BDI DE SERVIÇOS SEM DESONERAÇÃO - conforme Acórdão TCU 2622/2013"]
[{"$f":"Orcamento!C5","v":"ELABORAÇÃO DE PROJETOS EXECUTIVO  DE INFRAESTURURA URBANA - PAVIMENTAÇÃO E DRENAGEM DE ÁGUAS PLUVIAIS"},null,"Tipo de Serviço:","ELABORAÇÃO DE PROJETOS EDIFICIOS, CONSULTORIA E SUPERVISÃO"]
["Item componente do BDI","1° Quartil","Médio","3° quartil","BDI Adotado"]
["AC - Administração Central",0.03,0.04,5.5E-2,0.04]
["S + G - Seguro e Garantia",8.0000000000000002E-3,8.0000000000000002E-3,0.01,8.0000000000000002E-3]
["R - Risco",9.7000000000000003E-3,1.2699999999999999E-2,1.2699999999999999E-2,1.2699999999999999E-2]
["DF - Despesas Financeiras",5.8999999999999999E-3,1.23E-2,1.3899999999999999E-2,1.23E-2]
["L - Lucro",6.1600000000000002E-2,7.3999999999999996E-2,8.9599999999999999E-2,7.3999999999999996E-2]
["I - IMPOSTOS",null,null,null,{"$f":"SUM(E13:E16)","v":5.6499999999999995E-2}]
[null,null,null,"PIS:",6.4999999999999997E-3]
[null,null,null,"COFINS:",0.03]
[null,null,null,"ISSQN(3):",0.02]
[null,null,null,"CPRB(2)"]
["BDI CALCULADO:",null,null,null,{"$f":"ROUND(((1+E7+E8+E9)*(1+E10)*(1+E11)/(1-E12)-1),4)","v":0.2223}]
[]
["BDI calculado pela seguinte equação:"]
["Onde:"]
["AC: taxa de administração central;"]
["S: taxa de seguros;"]
["R: taxa de riscos;"]
["G: taxa de garantias;"]
["DF: taxa de despesas financeiras; "]
["L: taxa de lucro/remuneração;"]
["I: taxa de incidência de impostos [ PIS, COFINS, (3) ISSQN, (2) Encargos Sociais ]"]
["(2) CPRB=4,50%(Contribuição Previdenciária sobre a Receita Bruta - Lei no. 13.161 de 31/08/2015"]
["(3) ISSQN é um imposto que incide sobre o preço de serviço, em Corumbá o valor é de 5%. O custo previsto com mão-de-obra é de 60% do custo total da obra, para o computo do ISSQN o valor será de 3%"]